fUSD/lending_fUSD_20260323
["ID","MTS","AMOUNT","RATE_DAILY","PERIOD"]
[408778131,1774234239981,-500.0,0.00013192,2]
[408778132,1774234239991,-500.0,0.00013192,2]
[408778133,1774234240000,-500.0,0.00013192,2]
[408778134,1774234240011,-150.0,0.000132,2]
[408778135,1774234240020,-986.16618802,0.00013209,2]
[408778136,1774234240031,-166.66,0.00013241,2]
[408778137,1774234240041,-150.31215896,0.00013246,2]
[408778138,1774234240051,-500.0,0.00013247,2]
[408778139,1774234240060,-129.8815246,0.00013302,2]
[408778140,1774234240074,-370.1184754,0.00013302,2]
[408778141,1774234240084,-500.0,0.00013357,2]
[408778142,1774234240094,-500.0,0.00013412,2]
[408778143,1774234240105,-500.0,0.00013467,2]
[408778144,1774234240115,-166.66,0.00013498,2]
[408778145,1774234240126,-500.0,0.00013522,2]
[408778146,1774234240136,-1680.0,0.00013524,2]
[408778147,1774234240145,-500.0,0.00013577,2]
[408778148,1774234240154,-500.0,0.00013632,2]
[408778149,1774234240164,-155.0,0.00013652,3]
[408778150,1774234240173,-500.0,0.00013687,2]
[408778151,1774234240183,-491.85110422,0.00013698,2]
[408778152,1774234240193,-513.55432759,0.00013698,2]
[408778153,1774234240202,-511.35907537,0.00013698,2]
[408778154,1774234240211,-510.02011613,0.00013698,2]
[408778155,1774234240222,-200.0,0.00013699,2]
[408778156,1774234240231,-3649.96,0.00013699,2]
[408778157,1774234240242,-500.0,0.00013742,2]
[408778158,1774234240251,-3085.47,0.00013776,2]
[408778159,1774234240261,-500.0,0.00013797,2]
[408778160,1774234240270,-160.0,0.0001381,2]
[408778161,1774234240280,-979.16666667,0.0001381,2]
[408778163,1774234240290,-392.9787529,0.00013846,2]
[408778164,1774234240300,-152.0,0.0001387,3]
[408778165,1774234240310,-12178.8194,0.00013889,2]
[408778166,1774234240319,-2500.0,0.0001389,2]
[408778167,1774234240329,-168.508,0.00013896,2]
[408778169,1774234240339,-2638.427,0.00013896,2]
[408778171,1774234240349,-780.64409668,0.00013897,2]
[408778172,1774234240358,-5723.71373776,0.00013897,2]
[408778173,1774234240370,-2229.04774699,0.00013897,2]
[408778174,1774234240380,-500.0,0.00013973,2]
[408778175,1774234240389,-500.63590136,0.00013973,2]
[408778176,1774234240399,-210592.96388618,0.0001399,2]
[408778177,1774234240561,-669.56402145,0.0001399,2]
[408778186,1774234243330,-300.0,0.0001399,2]
[408778187,1774234243361,-476.66706049,0.0001399,2]
[408778194,1774234245735,-883.93612572,0.0001399,2]
[408778195,1774234245842,-7892.035199,0.0001399,2]
[408778201,1774235384625,8426.6,9.512e-05,2]
[408778220,1774235432447,-201.0,9.989e-05,2]
[408778221,1774235432457,-201.0,9.989e-05,2]
[408778222,1774235432466,-198.0,9.989e-05,2]
[408778223,1774235432506,-3.0,9.989e-05,2]
[408778224,1774235432516,-201.0,9.989e-05,2]
[408778225,1774235432527,-283.68606926,0.00010194,2]
[408778226,1774235432537,-170.21,0.00010399,2]
[408778227,1774235432546,-250.0,0.00010988,2]
[408778228,1774235432555,-329.2571384,0.00012457,2]
[408778229,1774235432567,-200.0,0.00012566,2]
[408778230,1774235432577,-2000.0,0.00012607,2]
[408778231,1774235432587,-256.02,0.00012735,2]
[408778232,1774235432598,-578.20924308,0.00012954,2]
[408778233,1774235432607,-1200.0,0.00012972,2]
[408778234,1774235432617,-300.0,0.00012972,2]
[408778235,1774235432626,-12178.8194,0.00012973,2]
[408778236,1774235432636,-2691.3899,0.00012973,2]
[408778237,1774235432645,-2229.04774699,0.00012982,2]
[408778238,1774235432654,-500.0,0.00013013,2]
[408778239,1774235432665,-1000.0,0.00013072,2]
[408778240,1774235432675,-150.0,0.00013072,2]
[408778241,1774235432684,-89495.09,0.00013073,2]
[408778242,1774235432693,-7163.44,0.00013082,2]
[408778243,1774235432703,-311.16926062,0.00013248,2]
[408778245,1774235437802,-1071.86020566,0.00013248,2]
[408778246,1774235437911,-1229.11053372,0.00013248,2]
[408778247,1774235437922,-281.0,0.00013275,5]
[408778248,1774235437931,-2175.44946628,0.00013513,2]
[408778271,1774235440019,-270.82621774,0.00013513,2]
[408778274,1774235440031,-3561.72431598,0.00013513,2]
[408778276,1774235440041,-2477.156,0.00013513,2]
[408778278,1774235440050,-1175.51,0.00013699,2]
[408778280,1774235440059,-811.86,0.00013699,2]
[408778282,1774235440068,-9999.99,0.00013699,2]
[408778284,1774235440077,-3392.4,0.00013699,2]
[408778286,1774235440086,-500.0,0.0001378,2]
[408778288,1774235440096,-500.0,0.0001378,2]
[408778290,1774235440105,-500.0,0.0001378,2]
[408778292,1774235440114,-500.0,0.0001378,2]
[408778294,1774235440124,-500.0,0.0001378,2]
[408778296,1774235440135,-500.0,0.0001378,2]
[408778298,1774235440144,-500.0,0.0001378,2]
[408778300,1774235440154,-500.0,0.0001378,2]
[408778301,1774235440164,-500.0,0.0001378,2]
[408778302,1774235440173,-500.0,0.0001378,2]
[408778303,1774235440183,-500.0,0.0001378,2]
[408778304,1774235440192,-500.0,0.0001378,2]
[408778305,1774235440204,-500.0,0.0001378,2]
[408778306,1774235440214,-500.0,0.0001378,2]
[408778307,1774235440224,-500.0,0.0001378,2]
[408778308,1774235440235,-500.0,0.0001378,2]
[408778309,1774235440246,-500.0,0.0001378,2]
[408778310,1774235440263,-500.0,0.0001378,2]
[408778311,1774235440273,-500.0,0.0001378,2]
[408778312,1774235440282,-188.05255802,0.0001378,2]
[408778313,1774235440292,-500.0,0.0001378,2]
[408778314,1774235440301,-500.0,0.0001378,2]
[408778315,1774235440313,-500.0,0.0001378,2]
[408778316,1774235440323,-500.0,0.0001378,2]
[408778317,1774235440333,-500.0,0.0001378,2]
[408778318,1774235440343,-500.0,0.0001378,2]
[408778319,1774235440352,-500.0,0.0001378,2]
[408778320,1774235440361,-500.0,0.0001378,2]
[408778321,1774235440371,-500.0,0.0001378,2]
[408778322,1774235440380,-500.0,0.0001378,2]
[408778323,1774235440389,-500.0,0.0001378,2]
[408778324,1774235440398,-500.0,0.0001378,2]
[408778325,1774235440407,-500.0,0.0001378,2]
[408778326,1774235440417,-500.0,0.0001378,2]
[408778327,1774235440426,-500.0,0.0001378,2]
[408778328,1774235440436,-500.0,0.0001378,2]
[408778329,1774235440445,-500.0,0.0001378,2]
[408778330,1774235440454,-500.0,0.0001378,2]
[408778331,1774235440463,-500.0,0.0001378,2]
[408778332,1774235440473,-500.0,0.0001378,2]
[408778333,1774235440483,-500.0,0.0001378,2]
[408778334,1774235440492,-500.0,0.0001378,2]
[408778335,1774235440502,-500.0,0.0001378,2]
[408778336,1774235440511,-500.0,0.0001378,2]
[408778337,1774235440520,-500.0,0.0001378,2]
[408778338,1774235440529,-500.0,0.0001378,2]
[408778339,1774235440538,-500.0,0.0001378,2]
[408778340,1774235440548,-500.0,0.0001378,2]
[408778341,1774235440557,-500.0,0.0001378,2]
[408778342,1774235440566,-500.0,0.0001378,2]
[408778343,1774235440575,-500.0,0.0001378,2]
[408778344,1774235440584,-500.0,0.0001378,2]
[408778345,1774235440593,-500.0,0.0001378,2]
[408778346,1774235440602,-500.0,0.0001378,2]
[408778347,1774235440611,-500.0,0.0001378,2]
[408778348,1774235440621,-500.0,0.0001378,2]
[408778349,1774235440630,-500.0,0.0001378,2]
[408778350,1774235440640,-500.0,0.0001378,2]
[408778351,1774235440649,-500.0,0.0001378,2]
[408778352,1774235440657,-500.0,0.0001378,2]
[408778353,1774235440666,-500.0,0.0001378,2]
[408778354,1774235440675,-500.0,0.0001378,2]
[408778355,1774235440684,-500.0,0.0001378,2]
[408778356,1774235440693,-650.0,0.0001378,2]
[408778357,1774235440703,-500.0,0.0001378,2]
[408778358,1774235440712,-500.0,0.0001378,2]
[408778359,1774235440722,-500.0,0.0001378,2]
[408778360,1774235440731,-11855.09794141,0.00013781,2]
[408778361,1774235440741,-2500.0,0.00013789,2]
[408778362,1774235440749,-1324.74578967,0.0001379,2]
[408778363,1774235440758,-5723.71373776,0.0001379,2]
[408778364,1774235440768,-160.0,0.00013798,2]
[408778365,1774235440778,-979.16666667,0.00013798,2]
[408778366,1774235440788,-1600.0,0.00013808,2]
[408778367,1774235440797,-264.16,0.00013808,2]
[408778368,1774235440806,-500.63590136,0.00013873,2]
[408778369,1774235440816,-500.0,0.00013873,2]
[408778370,1774235440826,-695.39793187,0.00013881,2]
[408778371,1774235440835,-500.0,0.00013881,2]
[408778372,1774235440847,-500.0,0.00013881,2]
[408778373,1774235440856,-500.0,0.00013881,2]
[408778374,1774235440865,-151.0,0.00013881,2]
[408778375,1774235440874,-500.0,0.00013881,2]
[408778376,1774235440885,-200.0,0.00013881,2]
[408778377,1774235440894,-500.0,0.00013881,2]
[408778378,1774235440903,-500.0,0.00013881,2]
[408778379,1774235440912,-500.0,0.00013881,2]
[408778380,1774235440927,-500.0,0.00013881,2]
[408778381,1774235440938,-500.0,0.00013881,2]
[408778382,1774235440947,-500.0,0.00013881,2]
[408778383,1774235440956,-151.0,0.00013881,2]
[408778384,1774235440966,-500.0,0.00013881,2]
[408778385,1774235440975,-151.0,0.00013881,2]
[408778386,1774235440986,-500.0,0.00013881,2]
[408778387,1774235440996,-151.0,0.00013881,2]
[408778388,1774235441006,-500.0,0.00013881,2]
[408778389,1774235441016,-151.0,0.00013881,2]
[408778390,1774235441025,-151.0,0.00013881,2]
[408778391,1774235441035,-151.0,0.00013881,2]
[408778392,1774235441044,-500.0,0.00013881,2]
[408778393,1774235441053,-151.0,0.00013881,2]
[408778394,1774235441062,-151.0,0.00013881,2]
[408778395,1774235441071,-500.0,0.00013881,2]
[408778396,1774235441080,-500.0,0.00013881,2]
[408778397,1774235441089,-151.0,0.00013881,2]
[408778398,1774235441098,-151.0,0.00013881,2]
[408778399,1774235441107,-500.0,0.00013881,2]
[408778400,1774235441116,-500.0,0.00013881,2]
[408778401,1774235441125,-151.0,0.00013881,2]
[408778402,1774235441134,-151.0,0.00013881,2]
[408778403,1774235441143,-500.0,0.00013881,2]
[408778404,1774235441152,-151.0,0.00013881,2]
[408778405,1774235441161,-151.0,0.00013881,2]
[408778406,1774235441171,-500.0,0.00013881,2]
[408778407,1774235441180,-151.0,0.00013881,2]
[408778408,1774235441189,-151.0,0.00013881,2]
[408778409,1774235441198,-151.0,0.00013881,2]
[408778410,1774235441207,-151.0,0.00013881,2]
[408778411,1774235441217,-500.0,0.00013881,2]
[408778412,1774235441226,-151.0,0.00013881,2]
[408778413,1774235441236,-151.0,0.00013881,2]
[408778414,1774235441246,-500.0,0.00013881,2]
[408778415,1774235441256,-151.0,0.00013881,2]
[408778416,1774235441266,-500.0,0.00013881,2]
[408778417,1774235441278,-151.0,0.00013881,2]
[408778418,1774235441287,-643.86066983,0.00013881,2]
[408778419,1774235441296,-151.0,0.00013881,2]
[408778420,1774235441305,-151.0,0.00013881,2]
[408778421,1774235441315,-151.0,0.00013881,2]
[408778422,1774235441324,-151.0,0.00013881,2]
[408778423,1774235441333,-500.0,0.00013881,2]
[408778424,1774235441342,-500.0,0.00013881,2]
[408778425,1774235441351,-500.0,0.00013881,2]
[408778426,1774235441360,-500.0,0.00013881,2]
[408778427,1774235441369,-500.0,0.00013881,2]
[408778428,1774235441378,-500.0,0.00013881,2]
[408778429,1774235441387,-500.0,0.00013881,2]
[408778430,1774235441396,-500.0,0.00013881,2]
[408778431,1774235441405,-500.0,0.00013881,2]
[408778432,1774235441414,-500.0,0.00013881,2]
[408778433,1774235441423,-2638.427,0.00013884,2]
[408778434,1774235441432,-168.508,0.00013884,2]
[408778435,1774235441441,-498.10906456,0.00013889,2]
[408778436,1774235441450,-500.0,0.00013889,2]
[408778437,1774235441460,-211.77032563,0.00013889,2]
[408778438,1774235441469,-500.0,0.00013889,2]
[408778439,1774235441478,-500.0,0.00013889,2]
[408778440,1774235441487,-500.0,0.00013889,2]
[408778441,1774235441496,-615.0469078,0.00013889,2]
[408778442,1774235441505,-500.0,0.00013889,2]
[408778443,1774235441514,-507.39307508,0.00013889,2]
[408778444,1774235441523,-500.0,0.00013889,2]
[408778445,1774235441532,-500.0,0.00013889,2]
[408778446,1774235441541,-500.0,0.00013889,2]
[408778447,1774235441550,-500.0,0.00013889,2]
[408778448,1774235441559,-500.0,0.00013889,2]
[408778449,1774235441568,-500.0,0.00013889,2]
[408778450,1774235441577,-163672.10264057,0.00013889,2]
[408778451,1774235441591,-2109.78527406,0.00013889,2]
[408778452,1774235441661,-302.68021404,0.00013889,2]
[408778503,1774235444040,-539.06316607,0.00013192,2]
[408778504,1774235444049,-415.0,0.00013513,2]
[408778505,1774235444058,-44508.39577133,0.00013889,2]
[408778506,1774235444067,-256382.2474,0.0001389,2]
[408778507,1774235444077,-151.0,0.0001389,2]
[408778508,1774235444086,-151.0,0.0001389,2]
[408778509,1774235444095,-151.0,0.0001389,2]
[408778510,1774235444104,-1000.0,0.0001389,2]
[408778511,1774235444113,-500.0,0.00013936,2]
[408778512,1774235444122,-152.0,0.00013939,3]
[408778513,1774235444132,-1590.2060237,0.00013946,2]
[408778514,1774235444142,-6448.0623903,0.00013946,2]
[408778515,1774235444151,-511.35907537,0.00013989,2]
[408778516,1774235444165,-491.85110422,0.00013989,2]
[408778517,1774235444174,-513.55432759,0.00013989,2]
[408778518,1774235444183,-510.02011613,0.00013989,2]
[408778519,1774235444193,-200.2,0.0001399,2]
[408778520,1774235444202,-155.0,0.0001399,3]
[408778521,1774235444211,-500.0,0.00013991,2]
[408778522,1774235444221,-176.92,0.00013997,2]
[408778523,1774235444230,-150.0,0.00014,2]
[408778524,1774235444240,-501.0,0.00014,2]
[408778525,1774235444249,-11855.09794135,0.00014016,2]
[408778526,1774235444259,-1324.74578962,0.00014024,2]
[408778527,1774235444269,-500.0,0.00014046,2]
[408778528,1774235444279,-3000.0,0.00014082,2]
[408778529,1774235444289,-1500.0,0.00014082,2]
[408778530,1774235444298,-150.0,0.0001409,2]
[408778531,1774235444307,-150.116,0.0001409,2]
[408778532,1774235444316,-150.0,0.0001409,2]
[408778533,1774235444326,-150.0,0.0001409,2]
[408778534,1774235444335,-150.0,0.0001409,2]
[408778535,1774235444345,-150.0,0.0001409,2]
[408778536,1774235444355,-150.101,0.0001409,2]
[408778537,1774235444363,-150.062,0.0001409,2]
[408778538,1774235444373,-150.0,0.0001409,2]
[408778539,1774235444382,-3515.0,0.0001409,2]
[408778540,1774235444943,-163.64,0.0001409,2]
[408778541,1774235444958,-622.211,0.0001409,2]
[408778542,1774235444968,-1044.0,0.0001409,2]
[408778543,1774235444978,-1263.621,0.0001409,2]
[408778544,1774235444987,-274.634,0.0001409,2]
[408778545,1774235444997,-1299.352,0.0001409,2]
[408778546,1774235445007,-926.587,0.0001409,2]
[408778547,1774235445016,-500.0,0.00014101,2]
[408778548,1774235445028,-1852.42,0.00014105,2]
[408778549,1774235445039,-152.0,0.00014148,4]
[408778550,1774235445048,-500.0,0.00014156,2]
[408778551,1774235445057,-255.0,0.00014183,2]
[408778552,1774235445067,-2000.0,0.00014183,2]
[408778553,1774235445077,-48462.25357249,0.00014199,2]
[408778554,1774235445087,-151.0,0.00014199,2]
[408778555,1774235445097,-500.0,0.00014211,2]
[408778556,1774235445109,-420.0,0.00014226,2]
[408778557,1774235445119,-11855.09794135,0.00014252,2]
[408778558,1774235445128,-1324.74578962,0.00014259,2]
[408778559,1774235445138,-500.0,0.00014266,2]
[408778560,1774235445149,-1680.0,0.00014269,2]
[408778561,1774235445158,-152.0,0.00014287,4]
[408778562,1774235445168,-500.0,0.00014321,2]
[408778563,1774235445178,-256.02,0.00014327,2]
[408778564,1774235445189,-500.0,0.00014376,2]
[408778565,1774235445199,-811.86,0.00014384,2]
[408778566,1774235445209,-500.0,0.00014421,2]
[408778567,1774235445219,-152.0,0.00014426,5]
[408778568,1774235445230,-500.0,0.00014431,2]
[408778569,1774235445240,-500.0,0.00014486,2]
[408778570,1774235445250,-11855.09794135,0.00014487,2]
[408778571,1774235445259,-1324.74578962,0.00014493,2]
[408778572,1774235445268,-155.0,0.00014524,3]
[408778573,1774235445278,-154.52521988,0.00014542,2]
[408778574,1774235445288,-181.85,0.0001456,2]
[408778575,1774235445297,-5000.0,0.00014628,2]
[408778576,1774235445307,-151.0,0.00014628,2]
[408778577,1774235445316,-151.0,0.00014628,2]
[408778578,1774235445326,-152.0,0.00014635,5]
[408778579,1774235445336,-152.0,0.00014704,6]
[408778580,1774235445345,-11855.09794135,0.00014723,2]
[408778581,1774235445355,-1324.74578962,0.00014728,2]
[408778582,1774235445364,-501.0,0.00014767,2]
[408778583,1774235445373,-359.26,0.00014774,2]
[408778584,1774235445382,-710.13477791,0.00014815,2]
[408778585,1774235445391,-10000.01,0.00014838,2]
[408778586,1774235445401,-200.0,0.00014875,2]
[408778587,1774235445410,-11855.09794135,0.00014958,2]
[408778588,1774235445419,-1324.74578962,0.00014962,2]
[408778589,1774235445429,-152.0,0.00014983,7]
[408778590,1774235445439,-152.0,0.00014983,6]
[408778591,1774235445451,-300.0,0.00015,2]
[408778592,1774235445461,-503.0,0.0001501,5]
[408778593,1774235445472,-155.0,0.00015058,3]
[408778594,1774235445481,-224.502071,0.00015068,2]
[408778595,1774235445490,-811.86,0.00015068,2]
[408778596,1774235445500,-1600.0,0.00015178,2]
[408778597,1774235445509,-11855.09794135,0.00015194,2]
[408778598,1774235445519,-1324.74578962,0.00015197,2]
[408778600,1774235445528,-153.0594,0.000152,2]
[408778601,1774235445537,-10000.0,0.00015205,2]
[408778602,1774235445546,-152.0,0.00015261,8]
[408778603,1774235445556,-152.0,0.0001533,7]
[408778604,1774235445565,-472.92,0.00015339,2]
[408778605,1774235445574,-1037.0,0.00015363,2]
[408778607,1774235445583,-433.0,0.00015386,2]
[408778608,1774235445592,-11855.09794135,0.00015429,2]
[408778609,1774235445601,-1324.74578962,0.00015431,2]
[408778610,1774235445610,-3000.0,0.00015452,2]
[408778611,1774235445619,-1500.0,0.00015452,2]
[408778612,1774235445628,-3297.14,0.00015507,2]
[408778613,1774235445637,-501.0,0.00015535,3]
[408778614,1774235445647,-152.0,0.00015539,9]
[408778615,1774235445655,-155.0,0.00015592,3]
[408778616,1774235445664,-788.0,0.00015592,2]
[408778617,1774235445673,-170.21,0.00015598,2]
[408778618,1774235445682,-788.0,0.00015599,2]
[408778619,1774235445691,-587.0,0.00015602,2]
[408778620,1774235445699,-214.08,0.00015659,2]
[408778621,1774235445709,-11855.09794135,0.00015665,2]
[408778622,1774235445718,-1324.74578962,0.00015666,2]
[408778623,1774235445726,-152.0,0.00015678,8]
[408778624,1774235445736,-1543.05050683,0.0001568,2]
[408778625,1774235445747,-599.60298507,0.00015693,2]
[408778626,1774235445756,-2351.0,0.00015696,2]
[408778627,1774235445765,-1438.7571938,0.00015713,2]
[408778628,1774235445774,-213.0,0.00015744,2]
[408778629,1774235445783,-811.86,0.00015753,2]
[408778630,1774235445792,-2000.0,0.00015759,2]
[408778631,1774235445801,-788.0,0.00015764,2]
[408778632,1774235445810,-285.0,0.0001577,2]
[408778633,1774235445819,-451.15540996,0.00015785,2]
[408778634,1774235445828,-167.99,0.00015792,2]
[408778635,1774235445837,-607.0,0.000158,5]
[408778636,1774235445849,-152.0,0.00015817,10]
[408778637,1774235445858,-213.0,0.00015836,2]
[408778638,1774235445867,-1175.51,0.00015862,2]
[408778639,1774235445876,-788.0,0.00015872,2]
[408778640,1774235445886,-788.0,0.00015874,2]
[408778641,1774235445895,-2000.0,0.0001589,2]
[408778642,1774235445905,-3297.14,0.00015895,2]
[408778643,1774235445915,-554.4045567,0.000159,2]
[408778644,1774235445926,-1324.74578962,0.000159,2]
[408778645,1774235445935,-11855.09794135,0.000159,2]
[408778646,1774235445944,-167.16996009,0.000159,2]
[408778647,1774235445954,-714.48810684,0.000159,2]
[408778648,1774235445963,-224.0130447,0.000159,2]
[408778649,1774235445972,-186.39347313,0.000159,2]
[408778650,1774235445982,-151.0,0.000159,2]
[408778651,1774235445991,-151.0,0.000159,2]
[408778653,1774235446000,-256.02,0.00015919,2]
[408778655,1774235446010,-788.0,0.0001596,2]
[408778656,1774235446019,-498.0,0.00015966,2]
[408778659,1774235446029,-788.0,0.0001597,2]
[408778660,1774235446039,-213.34203886,0.00015973,2]
[408778662,1774235446048,-500.58525136,0.00015973,2]
[408778664,1774235446058,-316.52454984,0.00015973,2]
[408778666,1774235446068,-347.31626399,0.00015973,2]
[408778668,1774235446078,-501.28156283,0.00015973,2]
[408778670,1774235446088,-502.35924996,0.00015973,2]
[408778672,1774235446098,-500.0,0.00015973,2]
[408778674,1774235446109,-501.1635301,0.00015973,2]
[408778676,1774235446120,-500.76215645,0.00015973,2]
[408778678,1774235446130,-500.0,0.00015973,2]
[408778680,1774235446139,-500.0,0.00015973,2]
[408778681,1774235446149,-258.98143984,0.00015973,2]
[408778683,1774235446159,-502.46732951,0.00015973,2]
[408778685,1774235446170,-505.85933034,0.00015973,2]
[408778687,1774235446179,-501.31011535,0.00015973,2]
[408778689,1774235446188,-501.23288456,0.00015973,2]
[408778691,1774235446197,-500.75405724,0.00015973,2]
[408778693,1774235446207,-500.0,0.00015973,2]
[408778695,1774235446218,-500.0,0.00015973,2]
[408778697,1774235446227,-500.27218225,0.00015973,2]
[408778699,1774235446236,-500.0,0.00015973,2]
[408778700,1774235446247,-500.0,0.00015973,2]
[408778702,1774235446256,-711.0,0.00015988,2]
[408778704,1774235446266,-780235.33082598,0.00016,2]
[408778739,1774236383002,6729.02263416,8e-05,2]
[408778741,1774236537735,22376.94144048,9.5e-05,3]
[408778755,1774236632555,-400.1161207,0.00011507,2]
[408778756,1774236632565,-339.75260614,0.00011507,2]
[408778757,1774236632576,-867.29465335,0.00011507,2]
[408778758,1774236632613,-518.16661981,0.00011507,2]
[408778759,1774236632622,-166.66,0.00012024,2]
[408778760,1774236632631,-4398.37,0.00012246,2]
[408778761,1774236632639,-166.66,0.00012277,2]
[408778762,1774236632649,-166.66,0.0001253,2]
[408778763,1774236632658,-1200.0,0.00012698,2]
[408778764,1774236632667,-300.0,0.00012699,2]
[408778765,1774236632675,-264.16,0.000127,2]
[408778766,1774236632684,-2800.0,0.000127,4]
[408778767,1774236632692,-166.66,0.00012783,2]
[408778768,1774236632702,-5700.0,0.000128,4]
[408778769,1774236632713,-1687.46220757,0.00012838,2]
[408778770,1774236632725,-164.95779243,0.00012838,2]
[408778771,1774236632736,-4027.15625829,0.00012862,2]
[408778772,1774236632748,-310.55827694,0.00012862,2]
[408778773,1774236632759,-334.02485,0.00012862,2]
[408778774,1774236632771,-511.41,0.00012862,2]
[408778775,1774236632790,-1850.0,0.00012862,2]
[408778776,1774236632814,-53804.42471477,0.00012862,2]
[408778777,1774236632823,-1254.14129233,0.0001287,2]
[408778778,1774236632832,-2500.0,0.00012873,2]
[408778779,1774236632841,-475.20390576,0.00012873,2]
[408778780,1774236632851,-8600.0,0.000129,4]
[408778781,1774236632860,-150.0,0.00012961,2]
[408778782,1774236632870,-53358.49702649,0.00012962,2]
[408778783,1774236632881,-3447.81456749,0.00012962,2]
[408778784,1774236632893,-10582.81775803,0.00012962,2]
[408778798,1774236638400,-1860.25209633,0.00012962,2]
[408778799,1774236638411,-261.30101582,0.00012965,2]
[408778800,1774236638420,-500.0,0.00012965,2]
[408778801,1774236638430,-500.0,0.00012965,2]
[408778802,1774236638445,-500.0,0.00012965,2]
[408778803,1774236638455,-151.0,0.00012965,2]
[408778804,1774236638465,-500.0,0.00012965,2]
[408778805,1774236638475,-200.0,0.00012965,2]
[408778806,1774236638484,-500.0,0.00012965,2]
[408778807,1774236638493,-500.0,0.00012965,2]
[408778808,1774236638503,-500.0,0.00012965,2]
[408778809,1774236638512,-500.0,0.00012965,2]
[408778810,1774236638520,-500.0,0.00012965,2]
[408778811,1774236638530,-500.0,0.00012965,2]
[408778812,1774236638539,-500.0,0.00012965,2]
[408778813,1774236638548,-500.0,0.00012965,2]
[408778814,1774236638558,-500.0,0.00012965,2]
[408778815,1774236638568,-151.0,0.00012965,2]
[408778816,1774236638577,-151.0,0.00012965,2]
[408778817,1774236638587,-151.0,0.00012965,2]
[408778818,1774236638596,-151.0,0.00012965,2]
[408778819,1774236638604,-151.0,0.00012965,2]
[408778820,1774236638613,-151.0,0.00012965,2]
[408778821,1774236638621,-151.0,0.00012965,2]
[408778822,1774236638630,-151.0,0.00012965,2]
[408778823,1774236638639,-151.0,0.00012965,2]
[408778824,1774236638648,-151.0,0.00012965,2]
[408778825,1774236638657,-151.0,0.00012965,2]
[408778826,1774236638666,-99.10688785,0.00012965,2]
[408778830,1774236640413,-51.89311215,0.00012965,2]
[408778831,1774236640426,-151.0,0.00012965,2]
[408778832,1774236640437,-151.0,0.00012965,2]
[408778833,1774236640450,-151.0,0.00012965,2]
[408778834,1774236640459,-151.0,0.00012965,2]
[408778835,1774236640469,-151.0,0.00012965,2]
[408778836,1774236640479,-151.0,0.00012965,2]
[408778837,1774236640490,-151.0,0.00012965,2]
[408778838,1774236640500,-151.0,0.00012965,2]
[408778839,1774236640510,-151.0,0.00012965,2]
[408778840,1774236640520,-500.0,0.00012965,2]
[408778841,1774236640534,-151.0,0.00012965,2]
[408778842,1774236640544,-151.0,0.00012965,2]
[408778843,1774236640553,-500.0,0.00012965,2]
[408778844,1774236640563,-104.20877906,0.00012965,2]
[408778845,1774236640604,-46.79122094,0.00012965,2]
[408778846,1774236640614,-151.0,0.00012965,2]
[408778847,1774236640624,-500.0,0.00012965,2]
[408778848,1774236640633,-151.0,0.00012965,2]
[408778849,1774236640643,-151.0,0.00012965,2]